[Event "Titled Tuesday Blitz June 15 2021"]
[White "Karpov, Vadim"]
[Black "Quintiliano Pinto, Renato R."]
[WhiteFideId "4155025"]
[BlackFideId "2117568"]
[WhiteElo "2290"]
[BlackElo "2439"]
[Result "0-1"]
[Round "04"]
[TimeControl "180+1"]
[Date "2021.06.15"]
[WhiteClock "0:00:11"]
[BlackClock "0:00:19"]

1. Nf3 {[%clk 0:02:49]}  Nf6 {[%clk 0:02:58]} 2. c4 {[%clk 0:02:50]}  e6 {[%clk 0:02:56]} 3. Nc3 {[%clk 0:02:50]}  d5 {[%clk 0:02:56]} 4. d4 {[%clk 0:02:49]}  c6 {[%clk 0:02:56]} 5. e3 {[%clk 0:02:47]}  Nbd7 {[%clk 0:02:55]} 6. Qc2 {[%clk 0:02:47]}  Bd6 {[%clk 0:02:54]} 7. Be2 {[%clk 0:02:47]}  O-O {[%clk 0:02:53]} 8. O-O {[%clk 0:02:47]}  dxc4 {[%clk 0:02:53]} 9. Bxc4 {[%clk 0:02:45]}  a6 {[%clk 0:02:52]} 10. Rd1 {[%clk 0:02:43]}  Qc7 {[%clk 0:02:47]} 11. b3 {[%clk 0:02:37]}  b5 {[%clk 0:02:40]} 12. Bd3 {[%clk 0:02:36]}  Bb7 {[%clk 0:02:36]} 13. Bb2 {[%clk 0:02:34]}  Rac8 {[%clk 0:02:31]} 14. Rac1 {[%clk 0:02:32]}  Rfd8 {[%clk 0:02:09]} 15. Qe2 {[%clk 0:02:29]}  c5 {[%clk 0:02:02]} 16. dxc5 {[%clk 0:02:25]}  Nxc5 {[%clk 0:02:03]} 17. Bb1 {[%clk 0:02:25]}  Qe7 {[%clk 0:01:51]} 18. b4 {[%clk 0:02:20]}  Ncd7 {[%clk 0:01:44]} 19. a3 {[%clk 0:02:19]}  Nb6 {[%clk 0:01:44]} 20. Ng5 {[%clk 0:02:03]}  Nc4 {[%clk 0:01:37]} 21. Nce4 {[%clk 0:02:02]}  Nxe4 {[%clk 0:01:34]} 22. Nxe4 {[%clk 0:01:56]}  Bxe4 {[%clk 0:01:34]} 23. Bxe4 {[%clk 0:01:51]}  Bxh2+ {[%clk 0:01:32]} 24. Kxh2 {[%clk 0:01:49]}  Qh4+ {[%clk 0:01:32]} 25. Kg1 {[%clk 0:01:48]}  Qxe4 {[%clk 0:01:32]} 26. Bd4 {[%clk 0:01:35]}  h6 {[%clk 0:01:16]} 27. a4 {[%clk 0:01:33]}  Rd5 {[%clk 0:01:11]} 28. axb5 {[%clk 0:01:32]}  axb5 {[%clk 0:01:12]} 29. Bc5 {[%clk 0:01:32]}  Rcd8 {[%clk 0:01:12]} 30. Rxd5 {[%clk 0:01:31]}  Qxd5 {[%clk 0:01:13]} 31. Ra1 {[%clk 0:01:28]}  Ra8 {[%clk 0:00:58]} 32. Rd1 {[%clk 0:01:25]}  Qe4 {[%clk 0:00:51]} 33. f3 {[%clk 0:01:18]}  Qe5 {[%clk 0:00:50]} 34. Bd4 {[%clk 0:01:01]}  Qc7 {[%clk 0:00:48]} 35. Bc5 {[%clk 0:00:56]}  Rd8 {[%clk 0:00:48]} 36. e4 {[%clk 0:00:51]}  Rd7 {[%clk 0:00:39]} 37. Kf2 {[%clk 0:00:46]}  Qd8 {[%clk 0:00:39]} 38. Rxd7 {[%clk 0:00:47]}  Qxd7 {[%clk 0:00:40]} 39. Qa2 {[%clk 0:00:40]}  f6 {[%clk 0:00:34]} 40. Qa8+ {[%clk 0:00:35]}  Kh7 {[%clk 0:00:34]} 41. Qb8 {[%clk 0:00:31]}  Qd2+ {[%clk 0:00:33]} 42. Kg3 {[%clk 0:00:30]}  Qe1+ {[%clk 0:00:31]} 43. Kh2 {[%clk 0:00:29]}  Nd2 {[%clk 0:00:22]} 44. Qxb5 {[%clk 0:00:28]}  Nf1+ {[%clk 0:00:22]} 45. Kg1 {[%clk 0:00:22]}  Ng3+ {[%clk 0:00:21]} 46. Kh2 {[%clk 0:00:20]}  Ne2 {[%clk 0:00:20]} 47. Qb8 {[%clk 0:00:11]}  Qh4# {[%clk 0:00:19]} 0-1


[Site "https://www.chess.com"]

[Event "Titled Tuesday Blitz June 15 2021"]
[White "Kislov, Oleg"]
[Black "Shkapenko, Pavel"]
[WhiteFideId "13503774"]
[BlackFideId "4151933"]
[WhiteElo "2252"]
[BlackElo "2386"]
[Result "1/2-1/2"]
[Round "04"]
[TimeControl "180+1"]
[Date "2021.06.15"]
[WhiteClock "0:00:16"]
[BlackClock "0:00:20"]

1. e4 {[%clk 0:03:00]}  e5 {[%clk 0:02:59]} 2. Nf3 {[%clk 0:03:00]}  Nc6 {[%clk 0:02:59]} 3. d4 {[%clk 0:03:00]}  exd4 {[%clk 0:02:59]} 4. Nxd4 {[%clk 0:03:00]}  Bc5 {[%clk 0:02:59]} 5. Be3 {[%clk 0:02:59]}  Qf6 {[%clk 0:02:59]} 6. c3 {[%clk 0:02:59]}  Nge7 {[%clk 0:02:56]} 7. Bc4 {[%clk 0:02:59]}  O-O {[%clk 0:02:54]} 8. O-O {[%clk 0:02:55]}  Qg6 {[%clk 0:02:53]} 9. Nd2 {[%clk 0:02:47]}  Bxd4 {[%clk 0:02:54]} 10. cxd4 {[%clk 0:02:45]}  d5 {[%clk 0:02:54]} 11. exd5 {[%clk 0:02:18]}  Nb4 {[%clk 0:02:54]} 12. Qf3 {[%clk 0:02:13]}  Bg4 {[%clk 0:02:49]} 13. Qg3 {[%clk 0:02:12]}  Nbxd5 {[%clk 0:02:48]} 14. h3 {[%clk 0:01:53]}  Be6 {[%clk 0:02:44]} 15. Qxg6 {[%clk 0:01:50]}  Nxg6 {[%clk 0:02:43]} 16. Rac1 {[%clk 0:01:45]}  Nge7 {[%clk 0:02:43]} 17. Ne4 {[%clk 0:01:41]}  Nxe3 {[%clk 0:02:28]} 18. fxe3 {[%clk 0:01:39]}  Bxc4 {[%clk 0:02:29]} 19. Rxc4 {[%clk 0:01:39]}  Nd5 {[%clk 0:02:29]} 20. Rf3 {[%clk 0:01:28]}  Rfe8 {[%clk 0:02:21]} 21. Nc3 {[%clk 0:01:28]}  Nxc3 {[%clk 0:02:13]} 22. bxc3 {[%clk 0:01:18]}  c6 {[%clk 0:02:13]} 23. Rc5 {[%clk 0:01:17]}  Re7 {[%clk 0:02:13]} 24. Kf2 {[%clk 0:01:17]}  Rae8 {[%clk 0:02:12]} 25. Ra5 {[%clk 0:01:16]}  a6 {[%clk 0:02:08]} 26. Ra3 {[%clk 0:01:16]}  f6 {[%clk 0:02:06]} 27. Rb3 {[%clk 0:01:16]}  Kf7 {[%clk 0:02:05]} 28. c4 {[%clk 0:01:16]}  b5 {[%clk 0:02:01]} 29. a4 {[%clk 0:01:11]}  bxc4 {[%clk 0:01:27]} 30. Rc3 {[%clk 0:01:10]}  Rb8 {[%clk 0:01:13]} 31. Rxc4 {[%clk 0:01:09]}  Rb2+ {[%clk 0:01:14]} 32. Kg3 {[%clk 0:01:10]}  Re6 {[%clk 0:01:14]} 33. Rc5 {[%clk 0:01:04]}  Ke7 {[%clk 0:01:03]} 34. Ra5 {[%clk 0:00:57]}  Rb6 {[%clk 0:01:03]} 35. h4 {[%clk 0:00:55]}  Kd7 {[%clk 0:01:03]} 36. Kf4 {[%clk 0:00:51]}  Kc7 {[%clk 0:01:02]} 37. g4 {[%clk 0:00:44]}  Kb7 {[%clk 0:01:02]} 38. g5 {[%clk 0:00:39]}  Rb1 {[%clk 0:00:58]} 39. Rc5 {[%clk 0:00:29]}  Rh1 {[%clk 0:00:57]} 40. Kg4 {[%clk 0:00:27]}  Rg1+ {[%clk 0:00:57]} 41. Kf5 {[%clk 0:00:26]}  Rd6 {[%clk 0:00:57]} 42. Rc2 {[%clk 0:00:25]}  fxg5 {[%clk 0:00:54]} 43. hxg5 {[%clk 0:00:25]}  Rd5+ {[%clk 0:00:54]} 44. Ke6 {[%clk 0:00:23]}  Rgxg5 {[%clk 0:00:33]} 45. Rb2+ {[%clk 0:00:23]}  Kc8 {[%clk 0:00:32]} 46. Rf8+ {[%clk 0:00:21]}  Rd8 {[%clk 0:00:31]} 47. Rf7 {[%clk 0:00:20]}  Rg6+ {[%clk 0:00:28]} 48. Ke5 {[%clk 0:00:18]}  Rd5+ {[%clk 0:00:27]} 49. Ke4 {[%clk 0:00:18]}  Rd7 {[%clk 0:00:26]} 50. Rf8+ {[%clk 0:00:17]}  Kc7 {[%clk 0:00:26]} 51. Rbb8 {[%clk 0:00:18]}  Kd6 {[%clk 0:00:26]} 52. Ra8 {[%clk 0:00:17]}  Re6+ {[%clk 0:00:26]} 53. Kd3 {[%clk 0:00:17]}  Rde7 {[%clk 0:00:25]} 54. Rf3 {[%clk 0:00:16]}  g5 {[%clk 0:00:24]} 55. Rxa6 {[%clk 0:00:16]}  g4 {[%clk 0:00:24]} 56. Rg3 {[%clk 0:00:16]}  h5 {[%clk 0:00:25]} 57. Ra5 {[%clk 0:00:16]}  Rb7 {[%clk 0:00:22]} 58. Rxh5 {[%clk 0:00:15]}  Rb3+ {[%clk 0:00:22]} 59. Kc4 {[%clk 0:00:16]}  Rexe3 {[%clk 0:00:20]} 60. Rxe3 {[%clk 0:00:15]}  Rxe3 {[%clk 0:00:20]} 61. Rh6+ {[%clk 0:00:16]}  Kc7 {[%clk 0:00:21]} 62. Rg6 {[%clk 0:00:16]}  g3 {[%clk 0:00:21]} 63. a5 {[%clk 0:00:17]}  Ra3 {[%clk 0:00:20]} 64. a6 {[%clk 0:00:16]}  Rxa6 {[%clk 0:00:20]} 65. Rxg3 {[%clk 0:00:16]} 1/2-1/2


[Site "https://www.chess.com"]

[Event "Titled Tuesday Blitz June 15 2021"]
[White "Kubicka, Anna"]
[Black "Jarovinsky, Alexey"]
[WhiteFideId "1152254"]
[BlackFideId "14115131"]
[WhiteElo "2010"]
[BlackElo "2446"]
[Result "1/2-1/2"]
[Round "04"]
[TimeControl "180+1"]
[Date "2021.06.15"]
[WhiteClock "0:00:05"]
[BlackClock "0:00:12"]

1. e4 {[%clk 0:03:00]}  Nc6 {[%clk 0:03:00]} 2. Nf3 {[%clk 0:02:56]}  d6 {[%clk 0:02:57]} 3. d4 {[%clk 0:02:56]}  Nf6 {[%clk 0:02:47]} 4. Nc3 {[%clk 0:02:55]}  Bg4 {[%clk 0:02:46]} 5. Be2 {[%clk 0:02:53]}  g6 {[%clk 0:02:45]} 6. O-O {[%clk 0:02:51]}  Bg7 {[%clk 0:02:44]} 7. h3 {[%clk 0:02:48]}  Bxf3 {[%clk 0:02:44]} 8. Bxf3 {[%clk 0:02:49]}  e5 {[%clk 0:02:34]} 9. d5 {[%clk 0:02:40]}  Nd4 {[%clk 0:02:28]} 10. Be3 {[%clk 0:02:36]}  Nxf3+ {[%clk 0:02:23]} 11. Qxf3 {[%clk 0:02:37]}  Nh5 {[%clk 0:02:10]} 12. Ne2 {[%clk 0:02:29]}  O-O {[%clk 0:01:56]} 13. c3 {[%clk 0:02:21]}  Qe8 {[%clk 0:01:46]} 14. g4 {[%clk 0:02:19]}  Nf6 {[%clk 0:01:44]} 15. Ng3 {[%clk 0:02:13]}  Nd7 {[%clk 0:01:34]} 16. Qg2 {[%clk 0:02:12]}  Qe7 {[%clk 0:01:29]} 17. Rae1 {[%clk 0:02:06]}  Bf6 {[%clk 0:01:29]} 18. Kh1 {[%clk 0:01:45]}  Bg5 {[%clk 0:01:27]} 19. Nf5 {[%clk 0:01:45]}  gxf5 {[%clk 0:01:19]} 20. gxf5 {[%clk 0:01:46]}  f6 {[%clk 0:01:15]} 21. h4 {[%clk 0:01:45]}  h6 {[%clk 0:01:14]} 22. hxg5 {[%clk 0:01:44]}  hxg5 {[%clk 0:01:08]} 23. Qg4 {[%clk 0:01:26]}  Kg7 {[%clk 0:01:02]} 24. Kg2 {[%clk 0:01:26]}  Rh8 {[%clk 0:01:01]} 25. Rh1 {[%clk 0:01:26]}  Rag8 {[%clk 0:00:56]} 26. Rxh8 {[%clk 0:01:13]}  Rxh8 {[%clk 0:00:57]} 27. Rh1 {[%clk 0:01:13]}  Rxh1 {[%clk 0:00:52]} 28. Kxh1 {[%clk 0:01:14]}  a6 {[%clk 0:00:45]} 29. Qh5 {[%clk 0:01:07]}  Nf8 {[%clk 0:00:42]} 30. Kg2 {[%clk 0:01:05]}  Qd7 {[%clk 0:00:41]} 31. b3 {[%clk 0:00:55]}  c6 {[%clk 0:00:37]} 32. c4 {[%clk 0:00:49]}  cxd5 {[%clk 0:00:32]} 33. cxd5 {[%clk 0:00:50]}  Qc7 {[%clk 0:00:28]} 34. Qe8 {[%clk 0:00:40]}  Qd7 {[%clk 0:00:19]} 35. Qb8 {[%clk 0:00:35]}  Qf7 {[%clk 0:00:17]} 36. Qxd6 {[%clk 0:00:28]}  Qh5 {[%clk 0:00:16]} 37. Qe7+ {[%clk 0:00:16]}  Kg8 {[%clk 0:00:16]} 38. f3 {[%clk 0:00:08]}  g4 {[%clk 0:00:15]} 39. Qxf6 {[%clk 0:00:06]}  Qh3+ {[%clk 0:00:15]} 40. Kg1 {[%clk 0:00:03]}  Qg3+ {[%clk 0:00:14]} 41. Kf1 {[%clk 0:00:03]}  Qxf3+ {[%clk 0:00:14]} 42. Bf2 {[%clk 0:00:04]}  Qd1+ {[%clk 0:00:12]} 43. Kg2 {[%clk 0:00:04]}  Qf3+ {[%clk 0:00:12]} 44. Kf1 {[%clk 0:00:05]}  Qd1+ {[%clk 0:00:12]} 45. Kg2 {[%clk 0:00:05]}  Qf3+ {[%clk 0:00:12]} 46. Kf1 {[%clk 0:00:05]} 1/2-1/2


[Site "https://www.chess.com"]

[Event "Titled Tuesday Blitz June 15 2021"]
[White "Lazavik, Denis"]
[Black "Ivanisevic, Ivan"]
[WhiteFideId "13515110"]
[BlackFideId "912417"]
[WhiteElo "2882"]
[BlackElo "2699"]
[Result "1/2-1/2"]
[Round "04"]
[TimeControl "180+1"]
[Date "2021.06.15"]
[WhiteClock "0:00:07"]
[BlackClock "0:00:10"]

1. d4 {[%clk 0:03:00]}  Nf6 {[%clk 0:02:58]} 2. c4 {[%clk 0:02:59]}  e6 {[%clk 0:02:59]} 3. Nf3 {[%clk 0:03:00]}  d5 {[%clk 0:02:58]} 4. Nc3 {[%clk 0:02:59]}  Nbd7 {[%clk 0:02:59]} 5. cxd5 {[%clk 0:02:58]}  exd5 {[%clk 0:02:59]} 6. Bg5 {[%clk 0:02:59]}  c6 {[%clk 0:03:00]} 7. e3 {[%clk 0:02:58]}  h6 {[%clk 0:03:00]} 8. Bh4 {[%clk 0:02:58]}  g5 {[%clk 0:03:00]} 9. Bg3 {[%clk 0:02:58]}  Nh5 {[%clk 0:03:01]} 10. Bd3 {[%clk 0:02:53]}  Nxg3 {[%clk 0:03:00]} 11. hxg3 {[%clk 0:02:54]}  Bg7 {[%clk 0:03:01]} 12. b4 {[%clk 0:02:49]}  Nb6 {[%clk 0:02:47]} 13. Qc2 {[%clk 0:02:35]}  Qe7 {[%clk 0:02:42]} 14. Rb1 {[%clk 0:02:32]}  O-O {[%clk 0:02:35]} 15. O-O {[%clk 0:02:30]}  Bg4 {[%clk 0:02:25]} 16. Nd2 {[%clk 0:02:21]}  Rad8 {[%clk 0:02:08]} 17. a4 {[%clk 0:02:14]}  f5 {[%clk 0:01:56]} 18. a5 {[%clk 0:02:14]}  Nc8 {[%clk 0:01:55]} 19. Rfe1 {[%clk 0:01:35]}  Qf7 {[%clk 0:01:32]} 20. f4 {[%clk 0:01:10]}  Nd6 {[%clk 0:01:29]} 21. Nf3 {[%clk 0:01:09]}  Bxf3 {[%clk 0:01:28]} 22. gxf3 {[%clk 0:01:08]}  a6 {[%clk 0:01:19]} 23. Kf2 {[%clk 0:01:04]}  Rfe8 {[%clk 0:01:19]} 24. Rh1 {[%clk 0:00:59]}  Re6 {[%clk 0:01:18]} 25. Rbe1 {[%clk 0:00:58]}  Rde8 {[%clk 0:01:17]} 26. Nd1 {[%clk 0:00:58]}  R8e7 {[%clk 0:00:47]} 27. Re2 {[%clk 0:00:53]}  Re8 {[%clk 0:00:47]} 28. Kf1 {[%clk 0:00:38]}  R8e7 {[%clk 0:00:46]} 29. Qc1 {[%clk 0:00:35]}  Re8 {[%clk 0:00:44]} 30. Reh2 {[%clk 0:00:32]}  g4 {[%clk 0:00:40]} 31. fxg4 {[%clk 0:00:30]}  fxg4 {[%clk 0:00:41]} 32. Re2 {[%clk 0:00:25]}  Nf5 {[%clk 0:00:39]} 33. Bxf5 {[%clk 0:00:24]}  Qxf5 {[%clk 0:00:40]} 34. Qd2 {[%clk 0:00:17]}  Re4 {[%clk 0:00:39]} 35. Nf2 {[%clk 0:00:17]}  R4e6 {[%clk 0:00:37]} 36. Kg2 {[%clk 0:00:14]}  h5 {[%clk 0:00:37]} 37. Rhe1 {[%clk 0:00:14]}  Bf6 {[%clk 0:00:37]} 38. Nd3 {[%clk 0:00:14]}  h4 {[%clk 0:00:34]} 39. Ne5 {[%clk 0:00:13]}  Qe4+ {[%clk 0:00:32]} 40. Kg1 {[%clk 0:00:13]}  Bxe5 {[%clk 0:00:31]} 41. dxe5 {[%clk 0:00:13]}  hxg3 {[%clk 0:00:30]} 42. Qc2 {[%clk 0:00:13]}  Qf3 {[%clk 0:00:26]} 43. Rf1 {[%clk 0:00:11]}  Qe4 {[%clk 0:00:26]} 44. Qxe4 {[%clk 0:00:11]}  dxe4 {[%clk 0:00:27]} 45. Rg2 {[%clk 0:00:12]}  Kf7 {[%clk 0:00:26]} 46. Rxg3 {[%clk 0:00:12]}  Rg6 {[%clk 0:00:26]} 47. f5 {[%clk 0:00:12]}  Rg5 {[%clk 0:00:26]} 48. e6+ {[%clk 0:00:10]}  Kf6 {[%clk 0:00:26]} 49. Rf4 {[%clk 0:00:11]}  Rxf5 {[%clk 0:00:26]} 50. Rxe4 {[%clk 0:00:11]}  Rxe6 {[%clk 0:00:26]} 51. Rxe6+ {[%clk 0:00:10]}  Kxe6 {[%clk 0:00:27]} 52. Rxg4 {[%clk 0:00:10]}  Rb5 {[%clk 0:00:26]} 53. Kf2 {[%clk 0:00:10]}  Kf5 {[%clk 0:00:25]} 54. Rd4 {[%clk 0:00:08]}  Ke5 {[%clk 0:00:24]} 55. Ke2 {[%clk 0:00:09]}  c5 {[%clk 0:00:25]} 56. bxc5 {[%clk 0:00:09]}  Rxc5 {[%clk 0:00:24]} 57. Rb4 {[%clk 0:00:08]}  Rxa5 {[%clk 0:00:23]} 58. Rxb7 {[%clk 0:00:08]}  Ra2+ {[%clk 0:00:23]} 59. Kf3 {[%clk 0:00:08]}  Ra3 {[%clk 0:00:23]} 60. Rh7 {[%clk 0:00:07]}  a5 {[%clk 0:00:22]} 61. Rh5+ {[%clk 0:00:08]}  Kf6 {[%clk 0:00:22]} 62. Kf4 {[%clk 0:00:08]}  a4 {[%clk 0:00:22]} 63. Rh6+ {[%clk 0:00:09]}  Kg7 {[%clk 0:00:21]} 64. Ra6 {[%clk 0:00:09]}  Ra1 {[%clk 0:00:21]} 65. Ke5 {[%clk 0:00:09]}  a3 {[%clk 0:00:21]} 66. e4 {[%clk 0:00:08]}  Kf7 {[%clk 0:00:21]} 67. Ra7+ {[%clk 0:00:08]}  Kg6 {[%clk 0:00:21]} 68. Ke6 {[%clk 0:00:09]}  Kg5 {[%clk 0:00:20]} 69. e5 {[%clk 0:00:09]}  a2 {[%clk 0:00:19]} 70. Ra5 {[%clk 0:00:07]}  Kf4 {[%clk 0:00:19]} 71. Kf6 {[%clk 0:00:05]}  Ke4 {[%clk 0:00:19]} 72. Ra4+ {[%clk 0:00:05]}  Kd5 {[%clk 0:00:19]} 73. Ra5+ {[%clk 0:00:04]}  Kd4 {[%clk 0:00:17]} 74. Ke6 {[%clk 0:00:04]}  Ke4 {[%clk 0:00:13]} 75. Ra4+ {[%clk 0:00:04]}  Kf3 {[%clk 0:00:12]} 76. Kf6 {[%clk 0:00:03]}  Ke3 {[%clk 0:00:12]} 77. Ke7 {[%clk 0:00:04]}  Kd3 {[%clk 0:00:11]} 78. e6 {[%clk 0:00:04]}  Kc3 {[%clk 0:00:11]} 79. Ke8 {[%clk 0:00:04]}  Kb3 {[%clk 0:00:10]} 80. Ra8 {[%clk 0:00:04]}  Re1 {[%clk 0:00:10]} 81. e7 {[%clk 0:00:04]}  a1=Q {[%clk 0:00:10]} 82. Rxa1 {[%clk 0:00:05]}  Rxa1 {[%clk 0:00:09]} 83. Kf7 {[%clk 0:00:05]}  Re1 {[%clk 0:00:09]} 84. e8=Q {[%clk 0:00:06]}  Rxe8 {[%clk 0:00:10]} 85. Kxe8 {[%clk 0:00:07]} 1/2-1/2


[Site "https://www.chess.com"]

[Event "Titled Tuesday Blitz June 15 2021"]
[White "Leiva, Gianmarco"]
[Black "Kapitanchuk, Tomas"]
[WhiteFideId "3804399"]
[BlackFideId "135046"]
[WhiteElo "2365"]
[BlackElo "1955"]
[Result "0-1"]
[Round "04"]
[TimeControl "180+1"]
[Date "2021.06.15"]
[WhiteClock "0:00:01"]
[BlackClock "0:00:08"]

1. Nf3 {[%clk 0:02:49]}  Nf6 {[%clk 0:02:59]} 2. d4 {[%clk 0:02:49]}  e6 {[%clk 0:02:59]} 3. c4 {[%clk 0:02:48]}  Bb4+ {[%clk 0:02:59]} 4. Nbd2 {[%clk 0:02:48]}  a5 {[%clk 0:02:57]} 5. g3 {[%clk 0:02:38]}  O-O {[%clk 0:02:55]} 6. Bg2 {[%clk 0:02:38]}  b6 {[%clk 0:02:54]} 7. O-O {[%clk 0:02:38]}  Bb7 {[%clk 0:02:48]} 8. Nb1 {[%clk 0:02:38]}  Ne4 {[%clk 0:02:40]} 9. Qc2 {[%clk 0:02:36]}  f5 {[%clk 0:02:38]} 10. Nfd2 {[%clk 0:02:30]}  d5 {[%clk 0:02:29]} 11. Nf3 {[%clk 0:02:22]}  Nd7 {[%clk 0:02:22]} 12. b3 {[%clk 0:02:16]}  a4 {[%clk 0:02:09]} 13. cxd5 {[%clk 0:01:54]}  Bxd5 {[%clk 0:01:59]} 14. bxa4 {[%clk 0:01:48]}  c5 {[%clk 0:01:46]} 15. a3 {[%clk 0:01:42]}  Ba5 {[%clk 0:01:46]} 16. Bb2 {[%clk 0:01:41]}  Rc8 {[%clk 0:01:40]} 17. Qd1 {[%clk 0:01:25]}  c4 {[%clk 0:01:37]} 18. Qc2 {[%clk 0:00:56]}  c3 {[%clk 0:01:33]} 19. Bc1 {[%clk 0:00:55]}  g5 {[%clk 0:01:10]} 20. h4 {[%clk 0:00:54]}  gxh4 {[%clk 0:00:53]} 21. Nxh4 {[%clk 0:00:54]}  Qf6 {[%clk 0:00:53]} 22. Be3 {[%clk 0:00:50]}  e5 {[%clk 0:00:45]} 23. Nf3 {[%clk 0:00:50]}  Qe6 {[%clk 0:00:36]} 24. dxe5 {[%clk 0:00:26]}  Nxe5 {[%clk 0:00:30]} 25. Nd4 {[%clk 0:00:24]}  Qf7 {[%clk 0:00:24]} 26. Bf4 {[%clk 0:00:18]}  Ng6 {[%clk 0:00:18]} 27. Bh6 {[%clk 0:00:18]}  Rfd8 {[%clk 0:00:18]} 28. Bh3 {[%clk 0:00:12]}  Ne7 {[%clk 0:00:15]} 29. Rd1 {[%clk 0:00:04]}  Bc4 {[%clk 0:00:15]} 30. Kh2 {[%clk 0:00:03]}  b5 {[%clk 0:00:14]} 31. axb5 {[%clk 0:00:02]}  Nxf2 {[%clk 0:00:14]} 32. Rf1 {[%clk 0:00:02]}  Nxh3 {[%clk 0:00:13]} 33. Nxf5 {[%clk 0:00:01]}  Nxf5 {[%clk 0:00:09]} 34. Rxf5 {[%clk 0:00:02]}  Qe6 {[%clk 0:00:09]} 35. Kxh3 {[%clk 0:00:01]}  Bd3 {[%clk 0:00:08]} 36. exd3 {[%clk 0:00:01]}  Qxf5+ {[%clk 0:00:08]} 0-1


[Site "https://www.chess.com"]

[Event "Titled Tuesday Blitz June 15 2021"]
[White "Levitskiy, Andrey"]
[Black "Chigaev, Maksim"]
[WhiteFideId "14132885"]
[BlackFideId "4108116"]
[WhiteElo "2569"]
[BlackElo "2889"]
[Result "0-1"]
[Round "04"]
[TimeControl "180+1"]
[Date "2021.06.15"]
[WhiteClock "0:00:04"]
[BlackClock "0:00:07"]

1. e4 {[%clk 0:03:00]}  c5 {[%clk 0:02:59]} 2. Nf3 {[%clk 0:03:00]}  e6 {[%clk 0:03:00]} 3. d4 {[%clk 0:03:01]}  cxd4 {[%clk 0:03:00]} 4. Nxd4 {[%clk 0:03:02]}  Nc6 {[%clk 0:03:01]} 5. Nc3 {[%clk 0:03:02]}  Qc7 {[%clk 0:03:01]} 6. g3 {[%clk 0:03:02]}  a6 {[%clk 0:03:01]} 7. Bg2 {[%clk 0:03:03]}  Nf6 {[%clk 0:03:01]} 8. O-O {[%clk 0:03:02]}  Nxd4 {[%clk 0:03:01]} 9. Qxd4 {[%clk 0:03:02]}  Bc5 {[%clk 0:03:02]} 10. Bf4 {[%clk 0:03:01]}  d6 {[%clk 0:03:02]} 11. Qd2 {[%clk 0:03:02]}  h6 {[%clk 0:02:59]} 12. Rad1 {[%clk 0:03:02]}  e5 {[%clk 0:02:59]} 13. Be3 {[%clk 0:03:03]}  Bxe3 {[%clk 0:02:58]} 14. fxe3 {[%clk 0:03:02]}  Be6 {[%clk 0:02:52]} 15. Qxd6 {[%clk 0:02:59]}  Rc8 {[%clk 0:02:53]} 16. Qb4 {[%clk 0:02:12]}  Qc5 {[%clk 0:02:31]} 17. Qxc5 {[%clk 0:01:56]}  Rxc5 {[%clk 0:02:31]} 18. Rd2 {[%clk 0:01:57]}  Rxc3 {[%clk 0:02:16]} 19. bxc3 {[%clk 0:01:56]}  Nd7 {[%clk 0:02:17]} 20. a4 {[%clk 0:01:27]}  Ke7 {[%clk 0:02:16]} 21. Rb1 {[%clk 0:01:22]}  Nc5 {[%clk 0:02:14]} 22. a5 {[%clk 0:01:14]}  Rc8 {[%clk 0:02:12]} 23. Rb4 {[%clk 0:00:58]}  Rc7 {[%clk 0:02:04]} 24. Bf1 {[%clk 0:00:56]}  Nd7 {[%clk 0:02:03]} 25. Bd3 {[%clk 0:00:51]}  Nb8 {[%clk 0:01:50]} 26. Rd1 {[%clk 0:00:46]}  Nc6 {[%clk 0:01:49]} 27. Ra4 {[%clk 0:00:46]}  Nd8 {[%clk 0:01:48]} 28. Rb1 {[%clk 0:00:45]}  Rxc3 {[%clk 0:01:42]} 29. Kf2 {[%clk 0:00:40]}  Rc5 {[%clk 0:01:36]} 30. Ke2 {[%clk 0:00:36]}  g5 {[%clk 0:01:31]} 31. Kd2 {[%clk 0:00:36]}  Bd7 {[%clk 0:01:25]} 32. Ra3 {[%clk 0:00:36]}  Rc7 {[%clk 0:01:20]} 33. Rc3 {[%clk 0:00:33]}  Bc6 {[%clk 0:01:21]} 34. Rb6 {[%clk 0:00:32]}  Rd7 {[%clk 0:01:20]} 35. Ke2 {[%clk 0:00:30]}  Rd6 {[%clk 0:01:13]} 36. g4 {[%clk 0:00:27]}  Kd7 {[%clk 0:00:53]} 37. Kf3 {[%clk 0:00:22]}  Kc7 {[%clk 0:00:45]} 38. Bc4 {[%clk 0:00:21]}  Rd2 {[%clk 0:00:34]} 39. h3 {[%clk 0:00:20]}  Rd1 {[%clk 0:00:27]} 40. Bd5 {[%clk 0:00:20]}  f6 {[%clk 0:00:23]} 41. Rc5 {[%clk 0:00:18]}  Rh1 {[%clk 0:00:22]} 42. Kg2 {[%clk 0:00:17]}  Ra1 {[%clk 0:00:22]} 43. Kg3 {[%clk 0:00:09]}  Kd6 {[%clk 0:00:18]} 44. Rc3 {[%clk 0:00:04]}  Rxa5 {[%clk 0:00:15]} 45. Bxc6 {[%clk 0:00:04]}  bxc6 {[%clk 0:00:16]} 46. Rb8 {[%clk 0:00:04]}  Kc7 {[%clk 0:00:14]} 47. Ra8 {[%clk 0:00:02]}  Ne6 {[%clk 0:00:07]} 48. Rh8 {[%clk 0:00:02]}  Nc5 {[%clk 0:00:07]} 49. Rxh6 {[%clk 0:00:02]}  Nxe4+ {[%clk 0:00:06]} 50. Kg2 {[%clk 0:00:02]}  Nxc3 {[%clk 0:00:07]} 51. Rxf6 {[%clk 0:00:02]}  Ra2 {[%clk 0:00:08]} 52. h4 {[%clk 0:00:02]}  Rxc2+ {[%clk 0:00:08]} 53. Kf3 {[%clk 0:00:03]}  gxh4 {[%clk 0:00:06]} 54. g5 {[%clk 0:00:03]}  h3 {[%clk 0:00:07]} 55. Rh6 {[%clk 0:00:04]}  Rg2 {[%clk 0:00:07]} 56. g6 {[%clk 0:00:03]}  e4+ {[%clk 0:00:07]} 57. Kf4 {[%clk 0:00:04]}  a5 {[%clk 0:00:06]} 58. Kf5 {[%clk 0:00:04]}  h2 {[%clk 0:00:06]} 59. Kf6 {[%clk 0:00:04]}  Nd5+ {[%clk 0:00:06]} 60. Kf7 {[%clk 0:00:04]}  Nxe3 {[%clk 0:00:06]} 61. g7 {[%clk 0:00:04]}  Rxg7+ {[%clk 0:00:06]} 62. Kxg7 {[%clk 0:00:04]}  Nf5+ {[%clk 0:00:07]} 0-1


[Site "https://www.chess.com"]